[Event "Estonian Chess Championship 2022"]
[Site "Tallinn, Paul Keres Chess House, Estonia"]
[Date "2022.12.16"]
[Round "7.2"]
[White "Sirosh, Ilja"]
[Black "Seeman, Tarvo"]
[Result "0-1"]
[TimeControl "90 minutes for first 40 moves and 15 min. for the rest of the game with 30 sec. increment from move 1"]
[WhiteTitle "IM"]
[BlackTitle "IM"]
[WhiteFideId "4500458"]
[BlackFideId "4500547"]
[WhiteElo "2386"]
[BlackElo "2405"]

1. e4 {

[%clk 01:30:57]

} {

[%emt 00:00:02]

} g6 {

[%clk 01:24:44]

} {

[%emt 00:06:16]

} 2. d4 {

[%clk 01:31:08]

} {

[%emt 00:00:18]

} Bg7 {

[%clk 01:25:09]

} {

[%emt 00:00:05]

} 3. Nf3 {

[%clk 01:31:31]

} {

[%emt 00:00:07]

} d6 {

[%clk 01:23:51]

} {

[%emt 00:01:49]

} 4. Be2 {

[%clk 01:31:42]

} {

[%emt 00:00:19]

} Nf6 {

[%clk 01:22:58]

} {

[%emt 00:01:23]

} 5. Nc3 {

[%clk 01:32:07]

} {

[%emt 00:00:05]

} O-O {

[%clk 01:22:20]

} {

[%emt 00:01:07]

} 6. O-O {

[%clk 01:32:33]

} {

[%emt 00:00:04]

} Bg4 {

[%clk 01:17:19]

} {

[%emt 00:05:31]

} 7. h3 {

[%clk 01:25:50]

} {

[%emt 00:07:13]

} Bxf3 {

[%clk 01:15:09]

} {

[%emt 00:02:39]

} 8. Bxf3 {

[%clk 01:26:15]

} {

[%emt 00:00:05]

} Nc6 {

[%clk 01:11:38]

} {

[%emt 00:04:01]

} 9. d5 {

[%clk 01:26:15]

} {

[%emt 00:00:31]

} Ne5 {

[%clk 01:11:05]

} {

[%emt 00:01:02]

} 10. Be2 {

[%clk 01:26:36]

} {

[%emt 00:00:09]

} c6 {

[%clk 01:11:05]

} {

[%emt 00:00:29]

} 11. dxc6 {

[%clk 01:17:59]

} {

[%emt 00:09:08]

} bxc6 {

[%clk 01:08:05]

} {

[%emt 00:03:29]

} 12. Be3 {

[%clk 01:16:40]

} {

[%emt 00:01:49]

} a5 {

[%clk 00:56:04]

} {

[%emt 00:12:32]

} 13. Qd2 {

[%clk 01:03:56]

} {

[%emt 00:13:14]

} a4 {

[%clk 00:50:44]

} {

[%emt 00:05:50]

} 14. a3 {

[%clk 00:53:21]

} {

[%emt 00:11:05]

} Qa5 {

[%clk 00:43:38]

} {

[%emt 00:07:35]

} 15. Rab1 {

[%clk 00:35:28]

} {

[%emt 00:18:23]

} Rfd8 {

[%clk 00:36:05]

} {

[%emt 00:08:03]

} 16. Rfd1 {

[%clk 00:29:41]

} {

[%emt 00:06:18]

} d5 {

[%clk 00:29:35]

} {

[%emt 00:06:59]

} 17. exd5 {

[%clk 00:19:20]

} {

[%emt 00:10:51]

} cxd5 {

[%clk 00:26:01]

} {

[%emt 00:04:04]

} 18. Bd4 {

[%clk 00:19:01]

} {

[%emt 00:00:49]

} Ned7 {

[%clk 00:25:10]

} {

[%emt 00:01:21]

} 19. f4 {

[%clk 00:18:53]

} {

[%emt 00:00:38]

} e6 {

[%clk 00:23:41]

} {

[%emt 00:02:00]

} 20. Qe3 {

[%clk 00:14:46]

} {

[%emt 00:04:37]

} Ne8 {

[%clk 00:16:25]

} {

[%emt 00:07:46]

} 21. Bb5 {

[%clk 00:13:19]

} {

[%emt 00:01:57]

} Nd6 {

[%clk 00:13:19]

} {

[%emt 00:03:36]

} 22. Bxg7 {

[%clk 00:12:42]

} {

[%emt 00:01:07]

} Nxb5 {

[%clk 00:11:51]

} {

[%emt 00:01:57]

} 23. Nxb5 {

[%clk 00:07:41]

} {

[%emt 00:05:31]

} Kxg7 {

[%clk 00:12:04]

} {

[%emt 00:00:17]

} 24. Nd4 {

[%clk 00:06:54]

} {

[%emt 00:01:17]

} Rdc8 {

[%clk 00:11:06]

} {

[%emt 00:01:27]

} 25. g4 {

[%clk 00:04:26]

} {

[%emt 00:02:59]

} Re8 {

[%clk 00:07:28]

} {

[%emt 00:04:08]

} 26. c4 {

[%clk 00:03:37]

} {

[%emt 00:01:20]

} dxc4 {

[%clk 00:05:11]

} {

[%emt 00:02:47]

} 27. Nf3 {

[%clk 00:03:47]

} {

[%emt 00:00:19]

} Qc5 {

[%clk 00:03:48]

} {

[%emt 00:01:53]

} 28. Qxc5 {

[%clk 00:04:06]

} {

[%emt 00:00:12]

} Nxc5 {

[%clk 00:04:13]

} {

[%emt 00:00:04]

} 29. Rdc1 {

[%clk 00:04:16]

} {

[%emt 00:00:20]

} Nd3 {

[%clk 00:01:56]

} {

[%emt 00:02:47]

} 30. Rxc4 {

[%clk 00:04:36]

} {

[%emt 00:00:10]

} Reb8 {

[%clk 00:01:28]

} {

[%emt 00:00:58]

} 31. Rd4 {

[%clk 00:03:34]

} {

[%emt 00:01:32]

} Rxb2 {

[%emt 00:01:18]

} 32. Rxb2 {

[%clk 00:03:53]

} {

[%emt 00:00:10]

} Nxb2 {

[%clk 00:01:09]

} {

[%emt 00:00:01]

} 33. Ne5 {

[%clk 00:03:36]

} {

[%emt 00:00:47]

} Ra7 {

[%clk 00:01:24]

} {

[%emt 00:00:16]

} 34. g5 {

[%clk 00:02:58]

} {

[%emt 00:01:07]

} f6 {

[%clk 00:01:38]

} {

[%emt 00:00:17]

} 35. Ng4 {

[%clk 00:03:14]

} {

[%emt 00:00:14]

} fxg5 {

[%clk 00:01:56]

} {

[%emt 00:00:12]

} 36. fxg5 {

[%clk 00:03:42]

} {

[%emt 00:00:01]

} Rc7 {

[%clk 00:01:14]

} {

[%emt 00:01:13]

} 37. Nh6 {

[%clk 00:03:41]

} {

[%emt 00:00:31]

} Kf8 {

[%clk 00:01:17]

} {

[%emt 00:00:27]

} 38. Rb4 {

[%clk 00:02:42]

} {

[%emt 00:01:28]

} Rc2 {

[%clk 00:01:12]

} {

[%emt 00:00:35]

} 39. Ng4 {

[%clk 00:01:02]

} {

[%emt 00:02:10]

} Ke7 {

[%clk 00:00:52]

} {

[%emt 00:00:51]

} 40. Rb7+ {

[%clk 00:15:41]

} {

[%emt 00:00:51]

} Kd6 {

[%clk 00:16:10]

} {

[%emt 00:00:12]

} 41. Nf6 {

[%clk 00:12:56]

} {

[%emt 00:03:15]

} Ke5 {

[%clk 00:13:21]

} {

[%emt 00:03:18]

} 42. Nxh7 {

[%clk 00:06:49]

} {

[%emt 00:06:38]

} Kf4 {

[%clk 00:11:44]

} {

[%emt 00:02:06]

} 43. Rf7+ {

[%clk 00:07:17]

} {

[%emt 00:00:03]

} Kg3 {

[%clk 00:11:45]

} {

[%emt 00:00:28]

} 44. Nf8 {

[%clk 00:07:45]

} {

[%emt 00:00:03]

} Nc4 {

[%clk 00:09:50]

} {

[%emt 00:02:25]

} 45. Rf1 {

[%clk 00:01:56]

} {

[%emt 00:06:20]

} Nd2 {

[%clk 00:07:28]

} {

[%emt 00:02:50]

} 46. Nxg6 {

[%clk 00:02:16]

} {

[%emt 00:00:11]

} Nxf1 {

[%clk 00:07:04]

} {

[%emt 00:00:54]

} 47. Kxf1 {

[%clk 00:02:44]

} {

[%emt 00:00:02]

} Rc3 {

[%clk 00:06:02]

} {

[%emt 00:01:32]

} 48. Ke2 {

[%clk 00:01:59]

} {

[%emt 00:01:15]

} Rxa3 {

[%clk 00:04:45]

} {

[%emt 00:01:47]

} 49. Nf8 {

[%clk 00:01:20]

} {

[%emt 00:01:09]

} e5 {

[%clk 00:02:29]

} {

[%emt 00:02:47]

} 50. Nd7 {

[%clk 00:01:48]

} {

[%emt 00:00:01]

} Kf4 {

[%clk 00:02:19]

} {

[%emt 00:00:40]

} 51. h4 {

[%clk 00:01:49]

} {

[%emt 00:00:30]

} Rh3 {

[%clk 00:02:08]

} {

[%emt 00:00:41]

} 52. g6 {

[%clk 00:01:58]

} {

[%emt 00:00:21]

} Rxh4 {

[%clk 00:02:05]

} {

[%emt 00:00:33]

} 53. g7 {

[%clk 00:02:09]

} {

[%emt 00:00:19]

} Rg4 {

[%clk 00:02:02]

} {

[%emt 00:00:32]

} 54. Nf6 {

[%clk 00:02:38]

} {

[%emt 00:00:02]

} Rxg7 {

[%clk 00:01:37]

} {

[%emt 00:00:55]

} 55. Nh5+ {

[%clk 00:03:06]

} {

[%emt 00:00:02]

} Kg4 {

[%clk 00:01:32]

} {

[%emt 00:00:34]

} 56. Nxg7 {

[%clk 00:03:34]

} {

[%emt 00:00:03]

} a3 {

[%clk 00:01:53]

} {

[%emt 00:00:09]

} 0-1

[Event "Estonian Chess Championship 2022"]
[Site "Tallinn, Paul Keres Chess House, Estonia"]
[Date "2022.12.16"]
[Round "7.3"]
[White "Kulaots, Kaido"]
[Black "Volodin, Aleksandr"]
[Result "1/2-1/2"]
[TimeControl "90 minutes for first 40 moves and 15 min. for the rest of the game with 30 sec. increment from move 1"]
[WhiteTitle "GM"]
[BlackTitle "GM"]
[WhiteFideId "4500261"]
[BlackFideId "4501950"]
[WhiteElo "2513"]
[BlackElo "2440"]

1. e4 {

[%clk 01:30:49]

} {

[%emt 00:00:10]

} c5 {

[%clk 01:30:36]

} {

[%emt 00:00:25]

} 2. Nf3 {

[%clk 01:31:13]

} {

[%emt 00:00:05]

} d6 {

[%clk 01:30:42]

} {

[%emt 00:00:25]

} 3. d4 {

[%clk 01:31:21]

} {

[%emt 00:00:21]

} cxd4 {

[%clk 01:31:07]

} {

[%emt 00:00:05]

} 4. Nxd4 {

[%clk 01:31:46]

} {

[%emt 00:00:05]

} Nf6 {

[%clk 01:31:31]

} {

[%emt 00:00:05]

} 5. Nc3 {

[%clk 01:32:11]

} {

[%emt 00:00:05]

} a6 {

[%clk 01:31:58]

} {

[%emt 00:00:04]

} 6. Bg5 {

[%clk 01:32:04]

} {

[%emt 00:00:36]

} e6 {

[%clk 01:31:29]

} {

[%emt 00:01:00]

} 7. f4 {

[%clk 01:32:18]

} {

[%emt 00:00:15]

} h6 {

[%clk 01:30:14]

} {

[%emt 00:01:46]

} 8. Bh4 {

[%clk 01:31:45]

} {

[%emt 00:01:03]

} Nbd7 {

[%clk 01:28:40]

} {

[%emt 00:02:04]

} 9. Qf3 {

[%clk 01:24:14]

} {

[%emt 00:07:59]

} e5 {

[%clk 01:28:55]

} {

[%emt 00:00:16]

} 10. Nf5 {

[%clk 01:19:00]

} {

[%emt 00:05:43]

} exf4 {

[%clk 01:29:13]

} {

[%emt 00:00:13]

} 11. Bxf6 {

[%clk 01:09:44]

} {

[%emt 00:09:46]

} Nxf6 {

[%clk 01:29:36]

} {

[%emt 00:00:06]

} 12. Qxf4 {

[%clk 01:09:48]

} {

[%emt 00:00:26]

} Bxf5 {

[%clk 01:30:02]

} {

[%emt 00:00:05]

} 13. exf5 {

[%clk 01:09:19]

} {

[%emt 00:00:58]

} Be7 {

[%clk 01:30:26]

} {

[%emt 00:00:06]

} 14. O-O-O {

[%clk 01:08:44]

} {

[%emt 00:01:05]

} Rc8 {

[%clk 01:30:50]

} {

[%emt 00:00:07]

} 15. h4 {

[%clk 01:03:56]

} {

[%emt 00:05:17]

} d5 {

[%clk 01:16:36]

} {

[%emt 00:14:45]

} 16. Qa4+ {

[%clk 00:47:35]

} {

[%emt 00:16:50]

} b5 {

[%clk 01:16:32]

} {

[%emt 00:00:34]

} 17. Qxa6 {

[%clk 00:47:03]

} {

[%emt 00:01:02]

} O-O {

[%clk 01:16:49]

} {

[%emt 00:00:13]

} 18. Bxb5 {

[%clk 00:42:20]

} {

[%emt 00:05:13]

} Rxc3 {

[%clk 01:11:28]

} {

[%emt 00:05:52]

} 19. bxc3 {

[%clk 00:41:11]

} {

[%emt 00:01:38]

} Ne4 {

[%clk 01:11:49]

} {

[%emt 00:00:09]

} 20. Rd3 {

[%clk 00:26:11]

} {

[%emt 00:15:31]

} Qc7 {

[%clk 01:09:56]

} {

[%emt 00:02:22]

} 21. Qc6 {

[%clk 00:18:31]

} {

[%emt 00:08:10]

} Ba3+ {

[%clk 01:01:28]

} {

[%emt 00:08:58]

} 22. Kb1 {

[%clk 00:15:41]

} {

[%emt 00:03:20]

} Qxc6 {

[%clk 00:54:22]

} {

[%emt 00:07:37]

} 23. Bxc6 {

[%clk 00:16:06]

} {

[%emt 00:00:05]

} Rb8+ {

[%clk 00:54:46]

} {

[%emt 00:00:05]

} 24. Ka1 {

[%clk 00:16:31]

} {

[%emt 00:00:05]

} Bb2+ {

[%clk 00:54:24]

} {

[%emt 00:00:52]

} 25. Kb1 {

[%clk 00:16:58]

} {

[%emt 00:00:04]

} Nd2+ {

[%clk 00:46:14]

} {

[%emt 00:08:40]

} 1/2-1/2

[Event "Estonian Chess Championship 2022"]
[Site "Tallinn, Paul Keres Chess House, Estonia"]
[Date "2022.12.16"]
[Round "7.4"]
[White "Soot, Margus"]
[Black "Kiik, Kalle"]
[Result "1-0"]
[TimeControl "90 minutes for first 40 moves and 15 min. for the rest of the game with 30 sec. increment from move 1"]
[BlackTitle "IM"]
[WhiteFideId "4501160"]
[BlackFideId "4500075"]
[WhiteElo "2121"]
[BlackElo "2369"]

1. c4 {

[%clk 01:30:35]

} {

[%emt 00:00:23]

} e5 {

[%clk 01:27:12]

} {

[%emt 00:03:47]

} 2. Nc3 {

[%clk 01:30:08]

} {

[%emt 00:00:57]

} Nf6 {

[%clk 01:26:39]

} {

[%emt 00:01:03]

} 3. g3 {

[%clk 01:29:39]

} {

[%emt 00:01:00]

} Bb4 {

[%clk 01:25:46]

} {

[%emt 00:01:23]

} 4. Bg2 {

[%clk 01:28:18]

} {

[%emt 00:01:51]

} O-O {

[%clk 01:24:55]

} {

[%emt 00:01:21]

} 5. Qb3 {

[%clk 01:17:13]

} {

[%emt 00:11:35]

} a5 {

[%clk 01:22:24]

} {

[%emt 00:03:01]

} 6. a3 {

[%clk 01:12:21]

} {

[%emt 00:05:22]

} Bc5 {

[%clk 01:16:36]

} {

[%emt 00:06:18]

} 7. e3 {

[%clk 01:09:50]

} {

[%emt 00:03:00]

} Re8 {

[%clk 01:15:00]

} {

[%emt 00:02:07]

} 8. d3 {

[%clk 01:07:44]

} {

[%emt 00:02:36]

} Nc6 {

[%clk 01:10:58]

} {

[%emt 00:04:31]

} 9. Nge2 {

[%clk 01:07:16]

} {

[%emt 00:00:58]

} d6 {

[%clk 01:08:41]

} {

[%emt 00:02:47]

} 10. O-O {

[%clk 01:07:34]

} {

[%emt 00:00:12]

} Bd7 {

[%clk 01:07:55]

} {

[%emt 00:01:15]

} 11. Qc2 {

[%clk 00:58:52]

} {

[%emt 00:09:14]

} Qc8 {

[%clk 01:04:28]

} {

[%emt 00:03:56]

} 12. b3 {

[%clk 00:58:41]

} {

[%emt 00:00:41]

} Bh3 {

[%clk 00:58:43]

} {

[%emt 00:06:15]

} 13. Bb2 {

[%clk 00:58:59]

} {

[%emt 00:00:12]

} Ne7 {

[%clk 00:54:02]

} {

[%emt 00:05:10]

} 14. d4 {

[%clk 00:52:31]

} {

[%emt 00:06:59]

} exd4 {

[%clk 00:54:16]

} {

[%emt 00:00:16]

} 15. exd4 {

[%clk 00:52:56]

} {

[%emt 00:00:05]

} Bb6 {

[%clk 00:50:04]

} {

[%emt 00:04:41]

} 16. Bxh3 {

[%clk 00:46:53]

} {

[%emt 00:06:35]

} Qxh3 {

[%clk 00:50:15]

} {

[%emt 00:00:18]

} 17. Nf4 {

[%clk 00:47:19]

} {

[%emt 00:00:05]

} Qh6 {

[%clk 00:43:10]

} {

[%emt 00:07:34]

} 18. Rad1 {

[%clk 00:47:17]

} {

[%emt 00:00:33]

} g5 {

[%clk 00:41:04]

} {

[%emt 00:02:35]

} 19. Ng2 {

[%clk 00:46:38]

} {

[%emt 00:01:09]

} Qh3 {

[%clk 00:38:41]

} {

[%emt 00:02:53]

} 20. Ne3 {

[%clk 00:42:03]

} {

[%emt 00:05:05]

} c6 {

[%clk 00:37:17]

} {

[%emt 00:01:54]

} 21. Ne4 {

[%clk 00:35:39]

} {

[%emt 00:06:55]

} Nxe4 {

[%clk 00:31:50]

} {

[%emt 00:05:57]

} 22. Qxe4 {

[%clk 00:35:51]

} {

[%emt 00:00:18]

} d5 {

[%clk 00:31:59]

} {

[%emt 00:00:21]

} 23. Qf3 {

[%clk 00:34:05]

} {

[%emt 00:02:16]

} f5 {

[%clk 00:25:07]

} {

[%emt 00:07:22]

} 24. Rfe1 {

[%clk 00:31:26]

} {

[%emt 00:03:09]

} Rad8 {

[%clk 00:18:17]

} {

[%emt 00:07:19]

} 25. cxd5 {

[%clk 00:25:55]

} {

[%emt 00:06:02]

} f4 {

[%clk 00:18:37]

} {

[%emt 00:00:08]

} 26. Ng4 {

[%clk 00:26:10]

} {

[%emt 00:00:15]

} Nxd5 {

[%clk 00:18:57]

} {

[%emt 00:00:10]

} 27. Re5 {

[%clk 00:26:34]

} {

[%emt 00:00:08]

} Rxe5 {

[%clk 00:13:00]

} {

[%emt 00:06:27]

} 28. dxe5 {

[%clk 00:23:25]

} {

[%emt 00:03:39]

} h5 {

[%clk 00:13:19]

} {

[%emt 00:00:10]

} 29. Nf6+ {

[%clk 00:08:12]

} {

[%emt 00:15:43]

} Nxf6 {

[%clk 00:10:20]

} {

[%emt 00:03:28]

} 30. Rxd8+ {

[%clk 00:08:37]

} {

[%emt 00:00:07]

} Bxd8 {

[%clk 00:10:45]

} {

[%emt 00:00:04]

} 31. exf6 {

[%clk 00:05:38]

} {

[%emt 00:03:30]

} Qf5 {

[%clk 00:09:52]

} {

[%emt 00:01:22]

} 32. Qxh5 {

[%clk 00:04:51]

} {

[%emt 00:01:18]

} Qb1+ {

[%clk 00:07:16]

} {

[%emt 00:03:06]

} 33. Kg2 {

[%clk 00:05:11]

} {

[%emt 00:00:09]

} Qe4+ {

[%clk 00:01:23]

} {

[%emt 00:06:23]

} 34. f3 {

[%clk 00:04:11]

} {

[%emt 00:01:30]

} 1-0

[Event "Estonian Chess Championship 2022"]
[Site "Tallinn, Paul Keres Chess House, Estonia"]
[Date "2022.12.16"]
[Round "7.5"]
[White "Timoshin, Andrei"]
[Black "Medar, Marti"]
[Result "1-0"]
[TimeControl "90 minutes for first 40 moves and 15 min. for the rest of the game with 30 sec. increment from move 1"]
[WhiteFideId "4503503"]
[BlackFideId "4501870"]
[WhiteElo "2179"]
[BlackElo "2069"]

1. e4 {

[%clk 01:27:33]

} {

[%emt 00:03:26]

} d6 {

[%clk 01:30:46]

} {

[%emt 00:00:14]

} 2. d4 {

[%clk 01:27:51]

} {

[%emt 00:00:11]

} Nf6 {

[%clk 01:31:10]

} {

[%emt 00:00:05]

} 3. Nc3 {

[%clk 01:28:14]

} {

[%emt 00:00:08]

} Nbd7 {

[%clk 01:31:25]

} {

[%emt 00:00:15]

} 4. g4 {

[%clk 01:27:59]

} {

[%emt 00:00:46]

} h6 {

[%clk 01:31:26]

} {

[%emt 00:00:28]

} 5. h3 {

[%clk 01:28:04]

} {

[%emt 00:00:25]

} e5 {

[%clk 01:31:04]

} {

[%emt 00:00:51]

} 6. Nge2 {

[%clk 01:27:05]

} {

[%emt 00:01:30]

} c6 {

[%clk 01:25:49]

} {

[%emt 00:05:44]

} 7. a4 {

[%clk 01:25:39]

} {

[%emt 00:01:57]

} Be7 {

[%clk 01:22:27]

} {

[%emt 00:03:51]

} 8. Bg2 {

[%clk 01:26:06]

} {

[%emt 00:00:04]

} Qc7 {

[%clk 01:21:40]

} {

[%emt 00:01:16]

} 9. Be3 {

[%clk 01:25:33]

} {

[%emt 00:01:03]

} Nf8 {

[%clk 01:19:25]

} {

[%emt 00:02:45]

} 10. O-O {

[%clk 01:23:02]

} {

[%emt 00:03:02]

} g5 {

[%clk 01:12:08]

} {

[%emt 00:07:46]

} 11. Ng3 {

[%clk 01:12:33]

} {

[%emt 00:10:59]

} Ng6 {

[%clk 01:12:09]

} {

[%emt 00:00:28]

} 12. Nf5 {

[%clk 01:11:58]

} {

[%emt 00:01:06]

} Bxf5 {

[%clk 01:08:26]

} {

[%emt 00:04:12]

} 13. exf5 {

[%clk 01:10:43]

} {

[%emt 00:01:46]

} Nf4 {

[%clk 01:07:47]

} {

[%emt 00:01:08]

} 14. Bxf4 {

[%clk 01:09:35]

} {

[%emt 00:01:40]

} exf4 {

[%clk 01:05:42]

} {

[%emt 00:02:34]

} 15. d5 {

[%clk 01:07:10]

} {

[%emt 00:02:55]

} c5 {

[%clk 01:04:29]

} {

[%emt 00:01:43]

} 16. Re1 {

[%clk 01:00:25]

} {

[%emt 00:07:16]

} Kf8 {

[%clk 01:01:44]

} {

[%emt 00:03:14]

} 17. Nb5 {

[%clk 00:43:42]

} {

[%emt 00:17:13]

} Qd7 {

[%clk 00:57:58]

} {

[%emt 00:04:15]

} 18. Qe2 {

[%clk 00:40:02]

} {

[%emt 00:04:10]

} Bd8 {

[%clk 00:56:18]

} {

[%emt 00:02:10]

} 19. Na3 {

[%clk 00:39:18]

} {

[%emt 00:01:15]

} h5 {

[%clk 00:52:22]

} {

[%emt 00:04:25]

} 20. Nc4 {

[%clk 00:37:08]

} {

[%emt 00:02:41]

} hxg4 {

[%clk 00:52:07]

} {

[%emt 00:00:45]

} 21. hxg4 {

[%clk 00:37:37]

} {

[%emt 00:00:02]

} Rh4 {

[%clk 00:52:05]

} {

[%emt 00:00:31]

} 22. Bf3 {

[%clk 00:37:54]

} {

[%emt 00:00:13]

} Bc7 {

[%clk 00:52:00]

} {

[%emt 00:00:35]

} 23. Qd1 {

[%clk 00:26:45]

} {

[%emt 00:11:40]

} Kg7 {

[%clk 00:48:18]

} {

[%emt 00:04:12]

} 24. Nd2 {

[%clk 00:24:19]

} {

[%emt 00:02:56]

} Rah8 {

[%clk 00:44:30]

} {

[%emt 00:04:17]

} 25. Ne4 {

[%clk 00:23:37]

} {

[%emt 00:01:13]

} Nxe4 {

[%clk 00:27:35]

} {

[%emt 00:17:25]

} 26. Rxe4 {

[%clk 00:24:06]

} {

[%emt 00:00:02]

} Bd8 {

[%clk 00:24:57]

} {

[%emt 00:03:07]

} 27. Qe2 {

[%clk 00:23:04]

} {

[%emt 00:01:32]

} Bf6 {

[%clk 00:24:47]

} {

[%emt 00:00:39]

} 28. c3 {

[%clk 00:22:48]

} {

[%emt 00:00:47]

} Qd8 {

[%clk 00:21:37]

} {

[%emt 00:03:41]

} 29. Re1 {

[%clk 00:22:19]

} {

[%emt 00:00:59]

} Be5 {

[%clk 00:18:45]

} {

[%emt 00:03:21]

} 30. Rxe5 {

[%clk 00:12:11]

} {

[%emt 00:10:38]

} dxe5 {

[%clk 00:19:09]

} {

[%emt 00:00:06]

} 31. Qxe5+ {

[%clk 00:12:37]

} {

[%emt 00:00:05]

} Qf6 {

[%clk 00:19:32]

} {

[%emt 00:00:06]

} 32. Qc7 {

[%clk 00:12:21]

} {

[%emt 00:00:45]

} Qh6 {

[%clk 00:14:04]

} {

[%emt 00:05:57]

} 33. Qe5+ {

[%clk 00:12:50]

} {

[%emt 00:00:02]

} Qf6 {

[%clk 00:13:56]

} {

[%emt 00:00:38]

} 34. Qe7 {

[%clk 00:06:16]

} {

[%emt 00:07:04]

} Qh6 {

[%clk 00:08:13]

} {

[%emt 00:06:13]

} 35. Kf1 {

[%clk 00:05:41]

} {

[%emt 00:01:06]

} Qa6+ {

[%clk 00:06:00]

} {

[%emt 00:02:43]

} 36. Re2 {

[%clk 00:01:51]

} {

[%emt 00:04:20]

} Rh3 {

[%clk 00:04:10]

} {

[%emt 00:02:19]

} 37. Qxg5+ {

[%clk 00:01:53]

} {

[%emt 00:00:28]

} Kh7 {

[%clk 00:02:01]

} {

[%emt 00:02:40]

} 38. f6 {

[%clk 00:00:45]

} {

[%emt 00:01:38]

} Rg8 {

[%clk 00:01:20]

} {

[%emt 00:01:11]

} 39. Qxf4 {

[%clk 00:00:42]

} {

[%emt 00:00:33]

} Re8 {

[%clk 00:00:47]

} {

[%emt 00:01:02]

} 40. Ke1 {

[%clk 00:15:37]

} {

[%emt 00:00:35]

} Rxe2+ {

[%clk 00:15:36]

} {

[%emt 00:00:42]

} 41. Bxe2 {

[%clk 00:16:03]

} {

[%emt 00:00:04]

} Qb6 {

[%clk 00:11:36]

} {

[%emt 00:04:30]

} 42. Qg5 {

[%clk 00:16:04]

} {

[%emt 00:00:28]

} 1-0